[Event "Gibraltar Masters 18th"]
[Site "Gibraltar"]
[Date "2020.01.25"]
[Round "5.43"]
[White "Pourkashiyan, Atousa"]
[Black "Tan, Zhongyi"]
[Result "1/2-1/2"]
[ECO "B85"]
[WhiteElo "2305"]
[BlackElo "2493"]
[PlyCount "86"]
[EventDate "2020.01.21"]
[EventType "swiss"]
[EventRounds "10"]
[EventCountry "GGB"]
[SourceTitle "BritBase"]
[Source "John Saunders"]
[SourceDate "2021.06.05"]
[SourceVersion "1"]
[SourceVersionDate "2021.06.05"]
[SourceQuality "1"]
[TimeControl "40/100:0"]
[WhiteClock "0:18:27"]
[BlackClock "1:19:02"]

1. e4 {[%emt 0:00:00]} c5 {[%emt 0:00:00]} 2. Nf3 {[%emt 0:00:00]} d6 {[%emt 0:
00:00]} 3. d4 {[%emt 0:00:00]} cxd4 {[%emt 0:00:00]} 4. Nxd4 {[%emt 0:00:00]}
Nf6 {[%emt 0:00:00]} 5. Nc3 {[%emt 0:00:00]} a6 {[%emt 0:00:00]} 6. Be3 {
[%emt 0:00:00]} e6 {[%emt 0:00:00]} 7. Be2 {[%emt 0:00:00]} Be7 {[%emt 0:00:00]
} 8. O-O {[%emt 0:00:00]} O-O {[%emt 0:00:00]} 9. f4 {[%emt 0:00:00]} Nc6 {
[%emt 0:00:00]} 10. Kh1 {[%emt 0:00:00]} Qc7 {[%emt 0:00:00]} 11. Qe1 {[%emt 0:
00:00]} Nxd4 {[%emt 0:00:00]} 12. Bxd4 {[%emt 0:00:00]} b5 {[%emt 0:00:00]} 13.
a3 {[%emt 0:00:00]} Bb7 {[%emt 0:00:00]} 14. Qg3 {[%emt 0:00:00]} Bc6 {[%emt 0:
00:00]} 15. Rae1 {[%emt 0:00:00]} Rac8 {[%emt 0:00:00]} 16. Bd3 {[%emt 0:00:00]
} e5 {[%emt 0:00:00]} 17. fxe5 {[%emt 0:00:00]} Nh5 {[%emt 0:00:00]} 18. Qh3 {
[%emt 0:00:00]} dxe5 {[%emt 0:00:00]} 19. Qxh5 {[%emt 0:00:00]} exd4 {[%emt 0:
00:00]} 20. Nd5 {[%emt 0:00:00]} Bxd5 {[%emt 0:00:00]} 21. exd5 {[%emt 0:00:00]
} g6 {[%emt 0:00:00]} 22. Qh6 {[%emt 0:00:00]} Rce8 {[%emt 0:00:00]} 23. Re4 {
[%emt 0:00:00]} Qd8 {[%emt 0:00:00]} 24. Rxd4 {[%emt 0:00:00]} Bf6 {[%emt 0:00:
00]} 25. Rb4 {[%emt 0:00:00]} Qxd5 {[%emt 0:00:00]} 26. Qh3 {[%emt 0:00:00]}
Bg5 {[%emt 0:00:00]} 27. Qg4 {[%emt 0:00:00]} Re5 {[%emt 0:00:00]} 28. Re4 {
[%emt 0:00:00]} Rfe8 {[%emt 0:00:00]} 29. Rxe5 {[%emt 0:00:00]} Qxe5 {[%emt 0:
00:00]} 30. a4 {[%emt 0:00:00]} Be7 {[%emt 0:00:00]} 31. Qf3 {[%emt 0:00:00]}
Rf8 {[%emt 0:00:00]} 32. axb5 {[%emt 0:00:00]} Bd6 {[%emt 0:00:00]} 33. g3 {
[%emt 0:00:00]} axb5 {[%emt 0:00:00]} 34. c3 {[%emt 0:00:00]} h5 {[%emt 0:00:
00]} 35. Qe4 {[%emt 0:00:00]} Qg5 {[%emt 0:00:00]} 36. Qc6 {[%emt 0:00:01]} Qe7
{[%emt 0:00:00]} 37. Qd5 {[%emt 0:01:02]} Kg7 {[%emt 0:00:00]} 38. Bxb5 {
[%emt 0:00:00]} h4 {[%emt 0:00:00]} 39. Kg2 {[%emt 0:00:02]} Rb8 {[%emt 0:00:
00]} 40. b4 {[%emt 0:00:00]} Rc8 {[%emt 0:00:00]} 41. Bc4 {[%emt 0:00:00]} f6 {
[%emt 0:00:00]} 42. Rf3 {[%emt 0:00:00]} Be5 {[%emt 0:00:00]} 43. Qe6 {[%emt 0:
00:00]} Qxe6 {[%emt 0:00:00]} 1/2-1/2

[Event "Gibraltar Masters 18th"]
[Site "Gibraltar"]
[Date "2020.01.25"]
[Round "5.44"]
[White "Werle, Iozefina"]
[Black "Henderson De La Fuente, Lance"]
[Result "1/2-1/2"]
[ECO "B50"]
[WhiteElo "2271"]
[BlackElo "2492"]
[PlyCount "53"]
[EventDate "2020.01.21"]
[EventType "swiss"]
[EventRounds "10"]
[EventCountry "GGB"]
[SourceTitle "BritBase"]
[Source "John Saunders"]
[SourceDate "2021.06.05"]
[SourceVersion "1"]
[SourceVersionDate "2021.06.05"]
[SourceQuality "1"]
[TimeControl "40/100:0"]
[WhiteClock "0:42:30"]
[BlackClock "0:46:06"]

1. e4 {[%emt 0:00:25]} c5 {[%emt 0:00:00]} 2. Nf3 {[%emt 0:00:00]} e6 {[%emt 0:
00:00]} 3. b3 {[%emt 0:00:00]} d6 {[%emt 0:00:00]} 4. Bb2 {[%emt 0:00:00]} Nf6
{[%emt 0:00:00]} 5. e5 {[%emt 0:00:00]} dxe5 {[%emt 0:00:00]} 6. Nxe5 {[%emt 0:
00:00]} Be7 {[%emt 0:00:00]} 7. Bd3 {[%emt 0:00:00]} Nbd7 {[%emt 0:00:00]} 8.
f4 {[%emt 0:00:00]} Nxe5 {[%emt 0:00:00]} 9. fxe5 {[%emt 0:00:00]} Nd5 {
[%emt 0:00:00]} 10. O-O {[%emt 0:00:00]} Bd7 {[%emt 0:00:00]} 11. Nc3 {[%emt 0:
00:00]} Nxc3 {[%emt 0:00:00]} 12. Qh5 {[%emt 0:00:00]} g6 {[%emt 0:00:00]} 13.
Qf3 {[%emt 0:00:00]} O-O {[%emt 0:00:00]} 14. Bxc3 {[%emt 0:00:00]} Bc6 {
[%emt 0:00:00]} 15. Be4 {[%emt 0:00:00]} Bxe4 {[%emt 0:00:00]} 16. Qxe4 {
[%emt 0:00:00]} Qd5 {[%emt 0:00:00]} 17. Qf4 {[%emt 0:00:00]} b5 {[%emt 0:00:
00]} 18. Rf3 {[%emt 0:00:00]} h5 {[%emt 0:00:00]} 19. Raf1 {[%emt 0:00:00]} c4
{[%emt 0:00:00]} 20. Qh6 {[%emt 0:00:00]} b4 {[%emt 0:00:00]} 21. Rg3 {[%emt 0:
00:00]} bxc3 {[%emt 0:00:00]} 22. Rxg6+ {[%emt 0:00:00]} fxg6 {[%emt 0:00:00]}
23. Qxg6+ {[%emt 0:00:00]} Kh8 {[%emt 0:00:00]} 24. Qh6+ {[%emt 0:00:00]} Kg8 {
[%emt 0:00:00]} 25. Qg6+ {[%emt 0:00:00]} Kh8 {[%emt 0:00:00]} 26. Qh6+ {
[%emt 0:00:00]} Kg8 {[%emt 0:00:00]} 27. Qg6+ {[%emt 0:00:00]} 1/2-1/2

[Event "Gibraltar Masters 18th"]
[Site "Gibraltar"]
[Date "2020.01.25"]
[Round "5.45"]
[White "Plotkin, Victor"]
[Black "Raja, Harshit"]
[Result "1-0"]
[ECO "B22"]
[WhiteElo "2267"]
[BlackElo "2482"]
[PlyCount "103"]
[EventDate "2020.01.21"]
[EventType "swiss"]
[EventRounds "10"]
[EventCountry "GGB"]
[SourceTitle "BritBase"]
[Source "John Saunders"]
[SourceDate "2021.06.05"]
[SourceVersion "1"]
[SourceVersionDate "2021.06.05"]
[SourceQuality "1"]
[TimeControl "40/100:0"]
[WhiteClock "0:12:08"]
[BlackClock "0:44:57"]

1. e4 {[%emt 0:00:00]} c5 {[%emt 0:00:00]} 2. c3 {[%emt 0:00:00]} g6 {[%emt 0:
00:00]} 3. d4 {[%emt 0:00:00]} cxd4 {[%emt 0:00:00]} 4. cxd4 {[%emt 0:00:00]}
d5 {[%emt 0:00:00]} 5. e5 {[%emt 0:00:00]} Nc6 {[%emt 0:00:00]} 6. Nc3 {
[%emt 0:00:00]} f6 {[%emt 0:00:00]} 7. Nf3 {[%emt 0:00:00]} a6 {[%emt 0:00:00]}
8. Bf4 {[%emt 0:00:00]} Bg4 {[%emt 0:00:00]} 9. Be2 {[%emt 0:00:00]} e6 {
[%emt 0:00:00]} 10. O-O {[%emt 0:00:00]} Bxf3 {[%emt 0:00:00]} 11. Bxf3 {
[%emt 0:00:00]} fxe5 {[%emt 0:00:00]} 12. Bxe5 {[%emt 0:00:00]} Nxe5 {[%emt 0:
00:00]} 13. dxe5 {[%emt 0:00:00]} Bg7 {[%emt 0:00:00]} 14. Bg4 {[%emt 0:00:00]}
Qe7 {[%emt 0:00:00]} 15. Qa4+ {[%emt 0:00:00]} Kf8 {[%emt 0:00:00]} 16. Qf4+ {
[%emt 0:00:00]} Qf7 {[%emt 0:00:00]} 17. Qb4+ {[%emt 0:00:00]} Qe7 {[%emt 0:00:
00]} 18. Qb6 {[%emt 0:00:00]} Re8 {[%emt 0:00:00]} 19. f4 {[%emt 0:00:00]} Nh6
{[%emt 0:00:00]} 20. Bh3 {[%emt 0:00:00]} Nf5 {[%emt 0:00:00]} 21. Bxf5 {
[%emt 0:00:00]} gxf5 {[%emt 0:00:00]} 22. Rac1 {[%emt 0:00:00]} Qd7 {[%emt 0:
00:00]} 23. Ne2 {[%emt 0:00:00]} Re7 {[%emt 0:00:00]} 24. Rc5 {[%emt 0:00:00]}
Kf7 {[%emt 0:00:00]} 25. Rfc1 {[%emt 0:00:00]} Rhe8 {[%emt 0:00:00]} 26. Nd4 {
[%emt 0:00:00]} Qa4 {[%emt 0:00:00]} 27. R5c3 {[%emt 0:00:00]} Bf8 {[%emt 0:00:
00]} 28. Ra3 {[%emt 0:00:00]} Qd7 {[%emt 0:00:00]} 29. Rac3 {[%emt 0:00:00]}
Qa4 {[%emt 0:00:00]} 30. a3 {[%emt 0:00:00]} Rd7 {[%emt 0:00:00]} 31. Rh3 {
[%emt 0:00:00]} h6 {[%emt 0:00:00]} 32. Rg3 {[%emt 0:00:00]} Bg7 {[%emt 0:00:
00]} 33. Rgc3 {[%emt 0:00:00]} Bf8 {[%emt 0:00:00]} 34. Rg3 {[%emt 0:00:00]}
Bg7 {[%emt 0:00:00]} 35. h3 {[%emt 0:00:00]} Rde7 {[%emt 0:00:00]} 36. Rgc3 {
[%emt 0:00:00]} Bf8 {[%emt 0:00:00]} 37. Kh1 {[%emt 0:00:00]} h5 {[%emt 0:00:
00]} 38. h4 {[%emt 0:00:20]} Kg8 {[%emt 0:00:00]} 39. g3 {[%emt 0:00:07]} Kf7 {
[%emt 0:00:00]} 40. Kh2 {[%emt 0:00:00]} Kg8 {[%emt 0:00:00]} 41. R1c2 {
[%emt 0:00:00]} Kf7 {[%emt 0:00:00]} 42. Rc7 {[%emt 0:00:00]} Kg8 {[%emt 0:00:
00]} 43. R7c3 {[%emt 0:00:00]} Kf7 {[%emt 0:00:00]} 44. Kg2 {[%emt 0:00:00]}
Kg8 {[%emt 0:00:00]} 45. Kf2 {[%emt 0:00:00]} Kf7 {[%emt 0:00:00]} 46. Ke2 {
[%emt 0:00:00]} Kg8 {[%emt 0:00:00]} 47. Kd2 {[%emt 0:00:00]} Rg7 {[%emt 0:00:
00]} 48. Kc1 {[%emt 0:00:00]} Rg6 {[%emt 0:00:00]} 49. Kb1 {[%emt 0:00:00]} Be7
{[%emt 0:00:00]} 50. Nxf5 {[%emt 0:00:00]} Bd8 {[%emt 0:00:00]} 51. Qd6 {
[%emt 0:00:00]} Qe4 {[%emt 0:00:00]} 52. Qd7 {[%emt 0:00:00]} 1-0

[Event "Gibraltar Masters 18th"]
[Site "Gibraltar"]
[Date "2020.01.25"]
[Round "5.46"]
[White "Weisbuch, Udi"]
[Black "Vocaturo, Daniele"]
[Result "0-1"]
[ECO "B51"]
[WhiteElo "2222"]
[BlackElo "2622"]
[PlyCount "76"]
[EventDate "2020.01.21"]
[EventType "swiss"]
[EventRounds "10"]
[EventCountry "GGB"]
[SourceTitle "BritBase"]
[Source "John Saunders"]
[SourceDate "2021.06.05"]
[SourceVersion "1"]
[SourceVersionDate "2021.06.05"]
[SourceQuality "1"]
[TimeControl "40/100:0"]
[WhiteClock "0:00:38"]
[BlackClock "0:31:24"]

1. e4 {[%emt 0:00:00]} c5 {[%emt 0:00:00]} 2. Nf3 {[%emt 0:00:00]} d6 {[%emt 0:
00:00]} 3. Bb5+ {[%emt 0:00:00]} Nd7 {[%emt 0:00:00]} 4. d4 {[%emt 0:00:00]}
cxd4 {[%emt 0:00:00]} 5. Qxd4 {[%emt 0:00:00]} a6 {[%emt 0:00:00]} 6. Bxd7+ {
[%emt 0:00:00]} Qxd7 {[%emt 0:00:00]} 7. c4 {[%emt 0:00:00]} e5 {[%emt 0:00:00]
} 8. Qd3 {[%emt 0:00:00]} f5 {[%emt 0:00:00]} 9. Nc3 {[%emt 0:00:00]} Nf6 {
[%emt 0:00:00]} 10. O-O {[%emt 0:00:00]} fxe4 {[%emt 0:00:00]} 11. Nxe4 {
[%emt 0:00:00]} b5 {[%emt 0:00:00]} 12. cxb5 {[%emt 0:00:00]} Nxe4 {[%emt 0:00:
00]} 13. Qxe4 {[%emt 0:00:00]} Bb7 {[%emt 0:00:00]} 14. Qe3 {[%emt 0:00:00]}
Qxb5 {[%emt 0:00:00]} 15. a4 {[%emt 0:00:00]} Qd5 {[%emt 0:00:00]} 16. Qd2 {
[%emt 0:00:00]} Qc4 {[%emt 0:00:00]} 17. Ra3 {[%emt 0:00:00]} Be7 {[%emt 0:00:
00]} 18. Rc3 {[%emt 0:00:00]} Qxa4 {[%emt 0:00:00]} 19. Rc7 {[%emt 0:00:00]}
Bxf3 {[%emt 0:00:00]} 20. gxf3 {[%emt 0:00:00]} Qb3 {[%emt 0:00:00]} 21. f4 {
[%emt 0:00:00]} Qe6 {[%emt 0:00:00]} 22. f5 {[%emt 0:00:00]} Qxf5 {[%emt 0:00:
00]} 23. f4 {[%emt 0:00:00]} e4 {[%emt 0:00:00]} 24. Qc2 {[%emt 0:00:00]} Kf7 {
[%emt 0:00:00]} 25. Qb3+ {[%emt 0:00:00]} Qe6 {[%emt 0:00:00]} 26. Qxe6+ {
[%emt 0:00:00]} Kxe6 {[%emt 0:00:00]} 27. f5+ {[%emt 0:00:00]} Kf7 {[%emt 0:00:
00]} 28. Bg5 {[%emt 0:00:00]} Rhe8 {[%emt 0:00:00]} 29. f6 {[%emt 0:00:00]}
gxf6 {[%emt 0:00:00]} 30. Rxf6+ {[%emt 0:00:00]} Kg8 {[%emt 0:00:00]} 31. Rf5 {
[%emt 0:00:00]} Rf8 {[%emt 0:00:00]} 32. Rd5 {[%emt 0:00:00]} Bf6 {[%emt 0:00:
00]} 33. Bxf6 {[%emt 0:00:24]} Rxf6 {[%emt 0:00:00]} 34. Re7 {[%emt 0:00:10]}
Rb8 {[%emt 0:00:00]} 35. Rg5+ {[%emt 0:00:00]} Kf8 {[%emt 0:00:00]} 36. Rxh7 {
[%emt 0:00:09]} Rxb2 {[%emt 0:00:00]} 37. Rgg7 {[%emt 0:00:00]} e3 {[%emt 0:00:
00]} 38. Ra7 {[%emt 0:00:19]} Rg6+ {[%emt 0:00:00]} 0-1

[Event "Gibraltar Masters 18th"]
[Site "Gibraltar"]
[Date "2020.01.25"]
[Round "5.47"]
[White "Kryakvin, Dmitry"]
[Black "Melia, Salome"]
[Result "1/2-1/2"]
[ECO "D02"]
[WhiteElo "2592"]
[BlackElo "2368"]
[PlyCount "98"]
[EventDate "2020.01.21"]
[EventType "swiss"]
[EventRounds "10"]
[EventCountry "GGB"]
[SourceTitle "BritBase"]
[Source "John Saunders"]
[SourceDate "2021.06.05"]
[SourceVersion "1"]
[SourceVersionDate "2021.06.05"]
[SourceQuality "1"]
[TimeControl "40/100:0"]
[WhiteClock "0:48:01"]
[BlackClock "0:24:49"]

1. d4 {[%emt 0:00:00]} d5 {[%emt 0:00:00]} 2. Nf3 {[%emt 0:00:00]} Nf6 {
[%emt 0:00:00]} 3. Bf4 {[%emt 0:00:00]} e6 {[%emt 0:00:00]} 4. e3 {[%emt 0:00:
00]} Be7 {[%emt 0:00:00]} 5. Bd3 {[%emt 0:00:00]} O-O {[%emt 0:00:00]} 6. Nbd2
{[%emt 0:00:00]} b6 {[%emt 0:00:00]} 7. Ne5 {[%emt 0:00:00]} c5 {[%emt 0:00:00]
} 8. c3 {[%emt 0:00:00]} Nfd7 {[%emt 0:00:00]} 9. Qf3 {[%emt 0:00:00]} Nxe5 {
[%emt 0:00:00]} 10. dxe5 {[%emt 0:00:00]} Ba6 {[%emt 0:00:00]} 11. Bc2 {
[%emt 0:00:00]} Nd7 {[%emt 0:00:00]} 12. Qh3 {[%emt 0:00:00]} g6 {[%emt 0:00:
00]} 13. Nf3 {[%emt 0:00:00]} Rc8 {[%emt 0:00:00]} 14. Qh6 {[%emt 0:00:00]} f5
{[%emt 0:00:00]} 15. g4 {[%emt 0:00:00]} Rc6 {[%emt 0:00:00]} 16. Rd1 {[%emt 0:
00:00]} Rf7 {[%emt 0:00:00]} 17. gxf5 {[%emt 0:00:00]} exf5 {[%emt 0:00:00]}
18. Rxd5 {[%emt 0:00:00]} Re6 {[%emt 0:00:00]} 19. Bb3 {[%emt 0:00:00]} c4 {
[%emt 0:00:00]} 20. Ba4 {[%emt 0:00:00]} Qa8 {[%emt 0:00:00]} 21. Rxd7 {
[%emt 0:00:00]} Qxf3 {[%emt 0:00:00]} 22. Rg1 {[%emt 0:00:00]} b5 {[%emt 0:00:
00]} 23. Bd1 {[%emt 0:00:00]} Qc6 {[%emt 0:00:00]} 24. Rd2 {[%emt 0:00:00]} b4
{[%emt 0:00:00]} 25. Qh3 {[%emt 0:00:00]} bxc3 {[%emt 0:00:00]} 26. bxc3 {
[%emt 0:00:00]} Qb5 {[%emt 0:00:00]} 27. Bf3 {[%emt 0:00:00]} Bb7 {[%emt 0:00:
00]} 28. Bxb7 {[%emt 0:00:00]} Qxb7 {[%emt 0:00:00]} 29. Qg2 {[%emt 0:00:00]}
Qxg2 {[%emt 0:00:07]} 30. Rxg2 {[%emt 0:00:00]} Rf8 {[%emt 0:00:21]} 31. Rd7 {
[%emt 0:00:00]} a6 {[%emt 0:00:00]} 32. f3 {[%emt 0:00:00]} Rb8 {[%emt 0:00:24]
} 33. Rgd2 {[%emt 0:00:00]} Bh4+ {[%emt 0:00:04]} 34. Kf1 {[%emt 0:00:00]} g5 {
[%emt 0:00:00]} 35. Bg3 {[%emt 0:00:00]} Bxg3 {[%emt 0:00:00]} 36. hxg3 {
[%emt 0:00:00]} Rxe5 {[%emt 0:00:00]} 37. Kf2 {[%emt 0:00:00]} Reb5 {[%emt 0:
00:04]} 38. e4 {[%emt 0:00:00]} fxe4 {[%emt 0:00:00]} 39. fxe4 {[%emt 0:00:00]}
Rb2 {[%emt 0:00:00]} 40. Ke3 {[%emt 0:00:00]} Rxd2 {[%emt 0:00:00]} 41. Rxd2 {
[%emt 0:00:00]} h5 {[%emt 0:00:00]} 42. e5 {[%emt 0:00:00]} Kf7 {[%emt 0:00:00]
} 43. Ke4 {[%emt 0:00:00]} Ke7 {[%emt 0:00:00]} 44. Kf5 {[%emt 0:00:00]} Rf8+ {
[%emt 0:00:00]} 45. Kxg5 {[%emt 0:00:00]} Rf3 {[%emt 0:00:00]} 46. Rg2 {
[%emt 0:00:00]} Rxc3 {[%emt 0:00:00]} 47. Kxh5 {[%emt 0:00:00]} Re3 {[%emt 0:
00:00]} 48. g4 {[%emt 0:00:00]} Rxe5+ {[%emt 0:00:00]} 49. g5 {[%emt 0:00:00]}
Kf7 {[%emt 0:00:00]} 1/2-1/2

[Event "Gibraltar Masters 18th"]
[Site "Gibraltar"]
[Date "2020.01.25"]
[Round "5.48"]
[White "Tregubov, Pavel V"]
[Black "Shachar, Ehud"]
[Result "1-0"]
[ECO "A90"]
[WhiteElo "2588"]
[BlackElo "2363"]
[PlyCount "75"]
[EventDate "2020.01.21"]
[EventType "swiss"]
[EventRounds "10"]
[EventCountry "GGB"]
[SourceTitle "BritBase"]
[Source "John Saunders"]
[SourceDate "2021.06.05"]
[SourceVersion "1"]
[SourceVersionDate "2021.06.05"]
[SourceQuality "1"]
[TimeControl "40/100:0"]
[WhiteClock "0:01:44"]
[BlackClock "0:05:12"]

1. d4 {[%emt 0:00:00]} e6 {[%emt 0:00:00]} 2. c4 {[%emt 0:00:00]} f5 {[%emt 0:
00:00]} 3. g3 {[%emt 0:00:00]} Nf6 {[%emt 0:00:00]} 4. Bg2 {[%emt 0:00:00]} c6
{[%emt 0:00:00]} 5. Nf3 {[%emt 0:00:00]} d5 {[%emt 0:00:00]} 6. O-O {[%emt 0:
00:00]} Bd6 {[%emt 0:00:00]} 7. Ne5 {[%emt 0:00:00]} O-O {[%emt 0:00:00]} 8.
Bf4 {[%emt 0:00:00]} Nh5 {[%emt 0:00:00]} 9. e3 {[%emt 0:00:00]} Nxf4 {[%emt 0:
00:00]} 10. exf4 {[%emt 0:00:00]} Nd7 {[%emt 0:03:21]} 11. Nf3 {[%emt 0:00:00]}
Nf6 {[%emt 0:00:00]} 12. Re1 {[%emt 0:00:00]} Ne4 {[%emt 0:00:00]} 13. Ne5 {
[%emt 0:00:00]} Bxe5 {[%emt 0:00:00]} 14. fxe5 {[%emt 0:00:00]} Qb6 {[%emt 0:
00:00]} 15. Re2 {[%emt 0:00:00]} Bd7 {[%emt 0:00:00]} 16. f3 {[%emt 0:00:00]}
Ng5 {[%emt 0:00:00]} 17. Qd2 {[%emt 0:00:00]} h6 {[%emt 0:00:00]} 18. Nc3 {
[%emt 0:00:00]} Qa6 {[%emt 0:00:00]} 19. c5 {[%emt 0:00:00]} b6 {[%emt 0:00:00]
} 20. b4 {[%emt 0:00:00]} bxc5 {[%emt 0:00:00]} 21. bxc5 {[%emt 0:00:00]} Rab8
{[%emt 0:00:00]} 22. h4 {[%emt 0:00:00]} Nf7 {[%emt 0:00:00]} 23. Bf1 {[%emt 0:
00:00]} Qa3 {[%emt 0:00:00]} 24. Re3 {[%emt 0:00:00]} Qa5 {[%emt 0:00:00]} 25.
Rb1 {[%emt 0:00:00]} f4 {[%emt 0:00:00]} 26. Rxb8 {[%emt 0:00:00]} Rxb8 {
[%emt 0:00:00]} 27. gxf4 {[%emt 0:00:00]} Qd8 {[%emt 0:00:00]} 28. Qh2 {
[%emt 0:00:00]} Rb4 {[%emt 0:00:00]} 29. Ne2 {[%emt 0:00:00]} Ra4 {[%emt 0:00:
00]} 30. f5 {[%emt 0:00:00]} Rxa2 {[%emt 0:00:00]} 31. Qg3 {[%emt 0:00:00]} Bc8
{[%emt 0:00:00]} 32. Bh3 {[%emt 0:00:00]} exf5 {[%emt 0:00:00]} 33. e6 {
[%emt 0:00:00]} Nh8 {[%emt 0:00:00]} 34. Bxf5 {[%emt 0:00:00]} Qe8 {[%emt 0:00:
00]} 35. Nf4 {[%emt 0:00:00]} Qe7 {[%emt 0:00:00]} 36. Nh5 {[%emt 0:00:00]} Rb2
{[%emt 0:00:00]} 37. Qxg7+ {[%emt 0:00:22]} Qxg7+ {[%emt 0:00:00]} 38. Nxg7 {
[%emt 0:00:00]} 1-0

[Event "Gibraltar Masters 18th"]
[Site "Gibraltar"]
[Date "2020.01.25"]
[Round "5.49"]
[White "Gschnitzer, Oswald"]
[Black "Idani, Pouya"]
[Result "0-1"]
[ECO "A50"]
[WhiteElo "2361"]
[BlackElo "2577"]
[PlyCount "86"]
[EventDate "2020.01.21"]
[EventType "swiss"]
[EventRounds "10"]
[EventCountry "GGB"]
[SourceTitle "BritBase"]
[Source "John Saunders"]
[SourceDate "2021.06.05"]
[SourceVersion "1"]
[SourceVersionDate "2021.06.05"]
[SourceQuality "1"]
[TimeControl "40/100:0"]
[WhiteClock "0:48:47"]
[BlackClock "1:10:29"]

1. Nf3 {[%emt 0:00:00]} Nf6 {[%emt 0:00:00]} 2. c4 {[%emt 0:00:00]} b6 {
[%emt 0:00:00]} 3. g3 {[%emt 0:00:00]} Bb7 {[%emt 0:00:00]} 4. Bg2 {[%emt 0:00:
00]} g6 {[%emt 0:00:00]} 5. O-O {[%emt 0:00:00]} Bg7 {[%emt 0:00:00]} 6. d4 {
[%emt 0:00:00]} O-O {[%emt 0:00:00]} 7. d5 {[%emt 0:00:00]} e6 {[%emt 0:00:00]}
8. Nc3 {[%emt 0:00:00]} Na6 {[%emt 0:00:00]} 9. Nd4 {[%emt 0:00:00]} e5 {
[%emt 0:00:00]} 10. Nc2 {[%emt 0:00:00]} Re8 {[%emt 0:00:00]} 11. e4 {[%emt 0:
00:00]} c6 {[%emt 0:00:00]} 12. Be3 {[%emt 0:00:00]} Bf8 {[%emt 0:00:00]} 13.
h3 {[%emt 0:00:00]} Rc8 {[%emt 0:00:00]} 14. Qd2 {[%emt 0:00:00]} Nh5 {[%emt 0:
00:00]} 15. Kh2 {[%emt 0:00:00]} Nb4 {[%emt 0:00:00]} 16. Ne1 {[%emt 0:00:00]}
a5 {[%emt 0:00:00]} 17. Na4 {[%emt 0:00:00]} cxd5 {[%emt 0:00:00]} 18. Bxb6 {
[%emt 0:00:00]} Qf6 {[%emt 0:00:00]} 19. cxd5 {[%emt 0:00:00]} Ba6 {[%emt 0:00:
00]} 20. a3 {[%emt 0:00:00]} Nxd5 {[%emt 0:00:00]} 21. exd5 {[%emt 0:00:00]}
Rc4 {[%emt 0:00:00]} 22. b4 {[%emt 0:00:00]} axb4 {[%emt 0:00:00]} 23. axb4 {
[%emt 0:00:00]} Rxb4 {[%emt 0:00:00]} 24. d6 {[%emt 0:00:00]} Bxd6 {[%emt 0:00:
00]} 25. Nd3 {[%emt 0:00:00]} Bxd3 {[%emt 0:00:00]} 26. Qxd3 {[%emt 0:00:00]}
e4 {[%emt 0:00:00]} 27. Qe3 {[%emt 0:00:00]} Ra8 {[%emt 0:00:00]} 28. Nc3 {
[%emt 0:00:00]} Rxa1 {[%emt 0:00:00]} 29. Rxa1 {[%emt 0:00:00]} Rxb6 {[%emt 0:
00:00]} 30. Ra8+ {[%emt 0:00:00]} Rb8 {[%emt 0:00:00]} 31. Nxe4 {[%emt 0:00:00]
} Qe7 {[%emt 0:00:00]} 32. Qa7 {[%emt 0:00:00]} Rxa8 {[%emt 0:00:00]} 33. Qxa8+
{[%emt 0:00:00]} Kg7 {[%emt 0:00:00]} 34. Qd5 {[%emt 0:00:00]} Be5 {[%emt 0:00:
00]} 35. Bf3 {[%emt 0:00:00]} f5 {[%emt 0:00:00]} 36. Nc5 {[%emt 0:00:10]} Nf6
{[%emt 0:00:00]} 37. Qc4 {[%emt 0:00:00]} h5 {[%emt 0:00:00]} 38. Nd3 {[%emt 0:
00:00]} h4 {[%emt 0:00:00]} 39. Qxh4 {[%emt 0:00:00]} Ng4+ {[%emt 0:00:00]} 40.
Kg2 {[%emt 0:00:52]} Bf6 {[%emt 0:00:00]} 41. hxg4 {[%emt 0:01:31]} Bxh4 {
[%emt 0:00:00]} 42. gxh4 {[%emt 0:00:00]} fxg4 {[%emt 0:00:00]} 43. Bxg4 {
[%emt 0:00:00]} Qe4+ {[%emt 0:00:00]} 0-1

[Event "Gibraltar Masters 18th"]
[Site "Gibraltar"]
[Date "2020.01.25"]
[Round "5.50"]
[White "Beinoras, Mindaugas"]
[Black "Baron, Tal"]
[Result "1/2-1/2"]
[ECO "D85"]
[WhiteElo "2355"]
[BlackElo "2529"]
[PlyCount "75"]
[EventDate "2020.01.21"]
[EventType "swiss"]
[EventRounds "10"]
[EventCountry "GGB"]
[SourceTitle "BritBase"]
[Source "John Saunders"]
[SourceDate "2021.06.05"]
[SourceVersion "1"]
[SourceVersionDate "2021.06.05"]
[SourceQuality "1"]
[TimeControl "40/100:0"]
[WhiteClock "0:02:06"]
[BlackClock "0:43:46"]

1. d4 {[%emt 0:00:00]} Nf6 {[%emt 0:00:00]} 2. c4 {[%emt 0:00:00]} g6 {[%emt 0:
00:00]} 3. Nc3 {[%emt 0:00:00]} d5 {[%emt 0:00:00]} 4. cxd5 {[%emt 0:00:00]}
Nxd5 {[%emt 0:00:00]} 5. Bd2 {[%emt 0:00:00]} Bg7 {[%emt 0:00:00]} 6. e4 {
[%emt 0:00:00]} Nxc3 {[%emt 0:00:00]} 7. Bxc3 {[%emt 0:00:00]} O-O {[%emt 0:00:
00]} 8. Bc4 {[%emt 0:00:00]} c5 {[%emt 0:00:00]} 9. d5 {[%emt 0:00:00]} Nd7 {
[%emt 0:00:00]} 10. Nf3 {[%emt 0:00:00]} Nb6 {[%emt 0:00:00]} 11. Qd3 {[%emt 0:
00:00]} Bxc3+ {[%emt 0:00:00]} 12. Qxc3 {[%emt 0:00:00]} Nxc4 {[%emt 0:00:00]}
13. Qxc4 {[%emt 0:00:00]} e6 {[%emt 0:00:00]} 14. O-O {[%emt 0:00:00]} exd5 {
[%emt 0:00:00]} 15. exd5 {[%emt 0:00:00]} b6 {[%emt 0:00:00]} 16. Rad1 {
[%emt 0:00:00]} Bb7 {[%emt 0:00:00]} 17. Qf4 {[%emt 0:00:00]} Kg7 {[%emt 0:00:
00]} 18. Ng5 {[%emt 0:00:00]} Rc8 {[%emt 0:00:00]} 19. Rfe1 {[%emt 0:00:00]}
Rc7 {[%emt 0:00:00]} 20. Qe5+ {[%emt 0:00:00]} Kg8 {[%emt 0:00:00]} 21. Ne4 {
[%emt 0:00:00]} f6 {[%emt 0:00:00]} 22. Qe6+ {[%emt 0:00:00]} Kh8 {[%emt 0:00:
00]} 23. d6 {[%emt 0:00:00]} Rd7 {[%emt 0:00:00]} 24. Nc3 {[%emt 0:00:00]} Bc6
{[%emt 0:00:00]} 25. Re3 {[%emt 0:00:00]} f5 {[%emt 0:00:00]} 26. Nd5 {[%emt 0:
00:00]} Bxd5 {[%emt 0:00:00]} 27. Qxd5 {[%emt 0:00:00]} Re8 {[%emt 0:00:00]}
28. Re6 {[%emt 0:00:00]} Rxe6 {[%emt 0:00:00]} 29. Qxe6 {[%emt 0:00:00]} Kg7 {
[%emt 0:00:00]} 30. h4 {[%emt 0:00:00]} Kf8 {[%emt 0:00:00]} 31. h5 {[%emt 0:
00:00]} Qe8 {[%emt 0:00:00]} 32. Qf6+ {[%emt 0:00:00]} Qf7 {[%emt 0:00:00]} 33.
Qh8+ {[%emt 0:00:00]} Qg8 {[%emt 0:00:00]} 34. Qe5 {[%emt 0:00:00]} Qg7 {
[%emt 0:00:00]} 35. Qe6 {[%emt 0:00:00]} Qf7 {[%emt 0:00:00]} 36. Qe5 {[%emt 0:
00:00]} Qg7 {[%emt 0:00:00]} 37. Qe6 {[%emt 0:00:00]} Qf7 {[%emt 0:00:00]} 38.
Qe5 {[%emt 0:00:00]} 1/2-1/2